bitfinex/quotes_BTCUSD_20241027
["timestamp","ask_amount","ask_price","bid_price","bid_amount"]
[1730049803991,0.001646,67763.0,67762.0,1.29094501]
[1730049804243,0.001646,67763.0,67762.0,1.29594501]
[1730049805631,0.001646,67763.0,67762.0,1.18563012]
[1730049808789,0.001646,67763.0,67762.0,1.18563547]
[1730049819699,0.001646,67763.0,67762.0,1.1856285]
[1730049821701,0.001646,67763.0,67762.0,1.1864515]
[1730049829717,0.001646,67763.0,67762.0,1.18642756]
[1730049834689,0.001646,67763.0,67762.0,1.18641888]
[1730049839496,0.001646,67763.0,67762.0,1.18641969]
[1730049842624,0.001646,67763.0,67762.0,1.18643546]
[1730049845037,0.001646,67763.0,67762.0,1.02354335]
[1730049850020,0.001646,67763.0,67762.0,1.18658873]
[1730049855008,0.001646,67763.0,67762.0,1.41485227]
[1730049858402,0.001646,67763.0,67762.0,1.31911566]
[1730049859348,0.001646,67763.0,67762.0,1.18658873]
[1730049859986,0.001646,67763.0,67762.0,1.31914688]
[1730049860204,0.001646,67763.0,67762.0,1.1866171]
[1730049861085,0.001646,67763.0,67762.0,1.18454079]
[1730049862208,0.001646,67763.0,67762.0,1.17954079]
[1730049862423,0.001646,67763.0,67762.0,1.18454079]
[1730049864898,0.001646,67763.0,67762.0,1.02146704]
[1730049865119,0.001646,67763.0,67762.0,1.18450124]
[1730049866780,0.31984981,67763.0,67762.0,1.02335979]
[1730049866999,0.31984981,67763.0,67762.0,1.11172731]
[1730049867220,0.31984981,67763.0,67762.0,0.86032559]
[1730049867431,0.46742281,67763.0,67762.0,0.90451794]
[1730049867638,0.46742281,67763.0,67762.0,0.86032559]
[1730049868523,0.55964903,67763.0,67762.0,0.86032559]
[1730049868749,0.46742281,67763.0,67762.0,0.86032559]
[1730049869453,0.55964903,67763.0,67762.0,0.86032559]
[1730049870135,0.46742281,67763.0,67762.0,0.86032559]
[1730049873149,0.55964903,67763.0,67762.0,0.86032559]
[1730049877151,0.46742281,67763.0,67762.0,0.86032559]
[1730049886937,0.46885636,67763.0,67762.0,0.86032559]
[1730049888709,0.49185636,67763.0,67762.0,0.86032559]
[1730049890744,0.7295484,67763.0,67762.0,0.86032559]
[1730049893862,0.82177462,67763.0,67762.0,0.86032559]
[1730049899271,0.81839015,67763.0,67762.0,0.86032559]
[1730049901477,0.82039015,67763.0,67762.0,0.86032559]
[1730049902841,0.72616393,67763.0,67762.0,0.86032559]
[1730049904003,0.49185636,67763.0,67762.0,0.86032559]
[1730049904459,0.49185636,67763.0,67762.0,0.85887286]
[1730049904460,0.72545786,67763.0,67762.0,0.85887286]
[1730049906464,0.64985786,67763.0,67762.0,0.85887286]
[1730049907804,0.72905786,67763.0,67762.0,0.85887286]
[1730049908452,0.82128408,67763.0,67762.0,0.85887286]
[1730049911927,0.82128408,67763.0,67762.0,0.86147187]
[1730049912173,0.82349822,67763.0,67762.0,0.86147187]
[1730049912649,0.82284034,67763.0,67762.0,0.86147187]
[1730049915588,0.8206262,67763.0,67762.0,0.86147187]
[1730049915807,0.82284034,67763.0,67762.0,0.86147187]
[1730049918132,0.91506656,67763.0,67762.0,0.86147187]
[1730049918339,0.82284034,67763.0,67762.0,0.86147187]
[1730049919252,0.8206262,67763.0,67762.0,0.86147187]
[1730049919456,0.82284034,67763.0,67762.0,0.86147187]
[1730049921703,0.82284034,67763.0,67762.0,0.86116043]
[1730049921913,0.82284034,67763.0,67762.0,0.86065004]
[1730049922751,0.8206262,67763.0,67762.0,0.86065004]
[1730049923051,0.82284034,67763.0,67762.0,0.86065004]
[1730049923188,0.82284034,67763.0,67762.0,0.86055065]
[1730049925697,0.73061412,67763.0,67762.0,0.86055065]
[1730049925929,0.82284034,67763.0,67762.0,0.86055065]
[1730049929378,0.91706656,67763.0,67762.0,0.86055065]
[1730049930012,0.91506656,67763.0,67762.0,0.86055065]
[1730049931347,1.01506656,67763.0,67762.0,0.86055065]
[1730049931781,1.01506656,67763.0,67762.0,0.86008882]
[1730049931782,1.05936299,67763.0,67762.0,0.86008882]
[1730049932039,1.01506656,67763.0,67762.0,0.85760766]
[1730049932266,1.01506656,67763.0,67762.0,0.86122204]
[1730049932493,1.06136299,67763.0,67762.0,0.86122204]
[1730049932711,1.01706656,67763.0,67762.0,0.86122204]
[1730049932945,0.9206262,67763.0,67762.0,0.86122204]
[1730049933151,1.05714885,67763.0,67762.0,0.86122204]
[1730049933374,1.05914885,67763.0,67762.0,0.86122204]
[1730049933594,1.06136298,67763.0,67762.0,0.86122204]
[1730049934042,0.96913676,67763.0,67762.0,0.86122204]
[1730049934704,0.96713676,67763.0,67762.0,0.86122204]
[1730049935128,1.05936298,67763.0,67762.0,0.86122204]
[1730049935559,0.96713676,67763.0,67762.0,0.86122204]
[1730049935803,1.05936298,67763.0,67762.0,0.86122204]
[1730049936257,0.96713676,67763.0,67762.0,0.86122204]
[1730049936468,0.86492263,67763.0,67762.0,0.86122204]
[1730049937389,0.86713713,67763.0,67762.0,0.86122204]
[1730049939148,0.69571091,67763.0,67762.0,0.86122204]
[1730049939373,0.6938721,67763.0,67762.0,0.86122204]
[1730049940771,0.6916576,67763.0,67762.0,0.86122204]
[1730049941667,0.69166913,67763.0,67762.0,0.86122204]
[1730049941889,0.69388329,67763.0,67762.0,0.85880925]
[1730049944496,0.69166913,67763.0,67762.0,0.85880925]
[1730049946501,0.69388474,67763.0,67762.0,0.85880925]
[1730049946952,0.60178474,67763.0,67762.0,0.85880925]
[1730049947192,0.55747533,67763.0,67762.0,0.85880925]
[1730049949917,0.53447533,67763.0,67762.0,0.93520925]
[1730049950605,0.38690233,67763.0,67762.0,1.02740925]
[1730049950825,0.53447533,67763.0,67762.0,1.02740925]
[1730049951051,0.38690233,67763.0,67762.0,1.02740925]
[1730049951747,0.53447533,67763.0,67762.0,1.02740925]
[1730049952919,0.38690233,67763.0,67762.0,1.02740925]
[1730049953130,0.53447533,67763.0,67762.0,1.02740925]
[1730049953774,0.38690233,67763.0,67762.0,1.02740925]
[1730049953991,0.53447533,67763.0,67762.0,1.02740925]
[1730049954223,0.38690233,67763.0,67762.0,1.02740925]
[1730049954450,0.53447533,67763.0,67762.0,1.02740925]
[1730049957333,0.53226117,67763.0,67762.0,1.02740925]
[1730049958227,0.53226117,67763.0,67762.0,1.02685306]
[1730049959345,0.53226117,67763.0,67762.0,1.02626032]
[1730049964501,0.23275081,67763.0,67762.0,0.85766032]
[1730049964748,0.23275081,67763.0,67762.0,1.12838654]
[1730049964976,0.23275081,67763.0,67762.0,1.03616032]
[1730049965458,0.23275081,67763.0,67762.0,1.18373532]
[1730049966308,0.23275081,67763.0,67762.0,1.03616032]
[1730049966727,0.23275081,67763.0,67762.0,1.18373532]
[1730049968549,0.23275081,67763.0,67762.0,1.27596154]
[1730049969897,0.23275081,67763.0,67762.0,1.18373532]
[1730049970833,0.23275081,67763.0,67762.0,1.27596154]
[1730049974944,0.23275081,67763.0,67762.0,1.34215049]
[1730049975164,0.23275081,67763.0,67762.0,1.27596154]
[1730049975415,0.23275081,67763.0,67762.0,1.32004338]
[1730049975868,0.23275081,67763.0,67762.0,1.27596154]
[1730049976080,0.23275081,67763.0,67762.0,1.32003621]
[1730049976288,0.23275081,67763.0,67762.0,1.27596154]
[1730049977861,0.23275081,67763.0,67762.0,1.18373532]
[1730049979598,0.23275081,67763.0,67762.0,1.22780999]
[1730049980039,0.23275081,67763.0,67762.0,1.18373532]
[1730049984424,0.23275081,67763.0,67762.0,1.44316665]
[1730049984629,0.001646,67769.0,67762.0,1.44316665]
[1730049984630,0.001646,67769.0,67768.0,0.32178822]
[1730049984876,0.001646,67769.0,67768.0,0.41848822]
[1730049985093,0.001646,67769.0,67768.0,0.5249044]
[1730049985304,0.001646,67769.0,67768.0,0.5299044]
[1730049985515,0.001646,67769.0,67768.0,0.54124463]
[1730049985752,0.001646,67769.0,67768.0,0.63347085]
[1730049986198,0.001646,67769.0,67768.0,0.54124463]
[1730049986878,0.001646,67769.0,67768.0,0.63347085]
[1730049987334,0.001646,67769.0,67768.0,0.54124463]
[1730049987562,0.001646,67769.0,67768.0,0.58524769]
[1730049987773,0.001646,67769.0,67768.0,0.67747391]
[1730049988413,0.001646,67769.0,67768.0,0.58524769]
[1730049988868,0.001646,67769.0,67768.0,0.58524202]
[1730049989530,0.001646,67769.0,67768.0,0.54124463]
[1730049989945,0.001646,67769.0,67768.0,0.63347085]
[1730049990157,0.001646,67769.0,67768.0,0.44901841]
[1730049990376,0.001646,67769.0,67768.0,0.49300405]
[1730049990593,0.001646,67769.0,67768.0,0.67745649]
[1730049991531,0.001646,67769.0,67768.0,0.67745443]
[1730049993918,0.001646,67769.0,67768.0,0.58522821]
[1730049994372,0.001646,67769.0,67768.0,0.54124463]
[1730049994599,0.001646,67769.0,67768.0,0.88381069]
[1730049995048,0.001646,67769.0,67768.0,0.79158447]
[1730049996126,0.001646,67769.0,67768.0,0.76956182]
[1730049999638,0.09977955,67784.0,67768.0,0.76956182]
[1730049999639,0.09977955,67784.0,67781.0,0.152533]
[1730050000084,0.09977955,67784.0,67781.0,0.16696164]
[1730050000306,0.001646,67782.0,67781.0,0.16696164]
[1730050017123,0.001646,67782.0,67781.0,0.16991196]
[1730050019013,0.001646,67782.0,67781.0,0.16696164]
[1730050028217,0.001646,67782.0,67781.0,0.21109117]
[1730050028429,0.001646,67782.0,67781.0,0.16696164]
[1730050029525,0.001646,67782.0,67781.0,0.33000177]
[1730050030453,0.001646,67782.0,67781.0,0.41826084]
[1730050030891,0.001646,67782.0,67781.0,0.41843034]
[1730050042945,0.37077055,67782.0,67781.0,0.17752948]
[1730050043158,0.244977,67782.0,67781.0,0.17752948]
[1730050043379,0.244977,67782.0,67781.0,0.08072208]
[1730050043595,0.244977,67782.0,67781.0,0.01442864]
[1730050043816,0.47638081,67782.0,67781.0,0.01442864]
[1730050044514,0.243338,67779.0,67778.0,0.04419803]
[1730050044720,0.243338,67779.0,67773.0,0.11045983]
[1730050044721,0.14754,67778.0,67777.0,0.04419803]
[1730050044886,0.29804381,67778.0,67777.0,0.04419803]
[1730050045674,0.147542,67777.0,67776.0,0.04419803]
[1730050045895,0.15050381,67777.0,67776.0,0.04419803]
[1730050046130,0.15050381,67777.0,67775.0,0.06629344]
[1730050046131,0.29804581,67777.0,67775.0,0.06629344]
[1730050046353,0.15050381,67776.0,67775.0,0.06629344]
[1730050046593,0.15050381,67776.0,67774.0,0.06629344]
[1730050046810,0.15050381,67776.0,67774.0,0.21384244]
[1730050047668,0.15050381,67776.0,67775.0,0.04417483]
[1730050047889,0.15050381,67776.0,67775.0,0.19172183]
[1730050048077,0.15050381,67776.0,67775.0,0.147547]
[1730050048302,0.15050381,67776.0,67775.0,0.19172133]
[1730050050259,0.15050381,67776.0,67775.0,0.19171311]
[1730050050484,0.15050381,67776.0,67775.0,0.19171253]
[1730050055031,0.15050381,67776.0,67775.0,0.19170181]
[1730050056116,0.15050381,67776.0,67775.0,0.20284824]
[1730050057444,0.15050381,67776.0,67775.0,0.15869343]
[1730050057670,0.15050381,67776.0,67775.0,0.20284824]
[1730050058331,0.15050381,67776.0,67775.0,0.15869343]
[1730050061315,0.0958,67779.0,67778.0,0.14754]
[1730050061525,0.24630381,67779.0,67778.0,0.14754]
[1730050061733,0.24630381,67779.0,67778.0,0.15868301]
[1730050062915,0.39384181,67779.0,67778.0,0.01114301]
[1730050063147,0.00143355,67780.0,67778.0,0.01114301]
[1730050063346,0.00143355,67780.0,67779.0,0.152538]
[1730050063519,0.00143355,67780.0,67779.0,0.1636728]
[1730050064197,0.00143355,67780.0,67779.0,0.1586728]
[1730050064751,0.00143355,67780.0,67779.0,0.0111348]
[1730050064969,0.00143355,67780.0,67779.0,0.1586728]
[1730050066561,0.00143355,67780.0,67779.0,0.0111348]
[1730050066975,0.00143355,67780.0,67777.0,0.15254]
[1730050067174,0.00143355,67780.0,67779.0,0.0111348]
[1730050067409,0.00143355,67780.0,67778.0,0.15867594]
[1730050067554,0.00143355,67780.0,67779.0,0.0111348]
[1730050069219,0.00143355,67780.0,67777.0,0.152542]
[1730050069631,0.00143355,67780.0,67778.0,0.01113594]
[1730050071472,0.61823536,67779.0,67778.0,0.01113594]
[1730050071679,0.61823536,67779.0,67772.0,0.005]
[1730050071680,0.00143355,67773.0,67772.0,0.04415491]
[1730050071883,0.00143355,67773.0,67769.0,0.000822]
[1730050071884,0.147557,67770.0,67769.0,0.000822]
[1730050072085,0.29949436,67770.0,67769.0,0.000822]
[1730050072293,0.25053736,67770.0,67769.0,0.000822]
[1730050073130,0.39809436,67770.0,67769.0,0.000822]
[1730050073390,0.25053736,67770.0,67769.0,0.000822]
[1730050074352,0.39809436,67770.0,67769.0,0.000822]
[1730050074573,0.25053736,67770.0,67769.0,0.000822]
[1730050079596,0.39809436,67770.0,67769.0,0.000822]
[1730050082275,0.25053736,67770.0,67769.0,0.000822]
[1730050083113,0.39809436,67770.0,67769.0,0.000822]
[1730050084041,0.25053736,67770.0,67769.0,0.000822]
[1730050097579,0.25218336,67770.0,67769.0,0.000822]
[1730050097804,0.39974036,67770.0,67769.0,0.000822]
[1730050099987,0.25218336,67770.0,67769.0,0.000822]
[1730050101639,0.25218336,67770.0,67769.0,0.01199707]
[1730050101861,0.25218336,67770.0,67769.0,0.000822]
[1730050101980,0.25218336,67770.0,67769.0,0.01199707]
[1730050102190,0.25218336,67770.0,67769.0,0.000822]
[1730050102395,0.25218336,67770.0,67769.0,0.01199707]
[1730050102611,0.25218336,67770.0,67769.0,0.000822]
[1730050102818,0.39974036,67770.0,67769.0,0.01199707]
[1730050105405,0.25218336,67770.0,67769.0,0.01199707]
[1730050106417,0.39974036,67770.0,67769.0,0.01199707]
[1730050107862,0.25218336,67770.0,67769.0,0.01199707]
[1730050110291,0.15358336,67770.0,67769.0,0.01199707]
[1730050111813,0.30114036,67770.0,67769.0,0.01199707]
[1730050112024,0.15358336,67770.0,67769.0,0.01199707]
[1730050112239,0.15358336,67770.0,67769.0,0.000822]
[1730050112443,0.30114036,67770.0,67769.0,0.01199792]
[1730050112673,0.30114036,67770.0,67769.0,0.000822]
[1730050114514,0.39854036,67770.0,67769.0,0.000822]
[1730050115982,0.49076658,67770.0,67769.0,0.000822]
[1730050116190,0.57366658,67770.0,67769.0,0.000822]
[1730050138131,0.48144036,67770.0,67769.0,0.000822]
[1730050142866,0.39854036,67770.0,67769.0,0.000822]
[1730050151682,0.00143355,67763.0,67762.0,0.797]
[1730050151925,0.15193736,67763.0,67762.0,0.797]
[1730050152130,0.15193736,67763.0,67762.0,0.80810148]
[1730050157975,0.15193736,67763.0,67762.0,0.80657824]
[1730050158174,0.15193736,67763.0,67762.0,0.80515809]
[1730050166240,0.15193736,67763.0,67762.0,0.95273309]
[1730050167754,0.15193736,67763.0,67762.0,0.80515809]
[1730050168291,0.15358336,67763.0,67762.0,0.80515809]
[1730050169314,0.15358336,67763.0,67762.0,0.84938535]
[1730050171578,0.15358336,67763.0,67762.0,1.08926035]
[1730050173550,0.15358336,67763.0,67762.0,0.94175471]
[1730050175770,0.15358336,67763.0,67762.0,0.84945471]
[1730050177087,0.15358336,67763.0,67762.0,0.99702971]
[1730050177319,0.15358336,67763.0,67762.0,0.84945471]
[1730050177989,0.15358336,67763.0,67762.0,0.84933912]
[1730050178428,0.15358336,67763.0,67762.0,0.84934076]
[1730050180533,0.00307955,67763.0,67762.0,1.00191576]
[1730050181789,0.00307955,67763.0,67762.0,0.9516295]
[1730050184302,0.00307955,67763.0,67762.0,0.99593053]
[1730050186538,0.00307955,67763.0,67762.0,0.84835553]
[1730050187388,0.00307955,67763.0,67762.0,0.8483548]
[1730050188298,0.00307955,67763.0,67762.0,0.84835648]
[1730050206228,0.00307955,67763.0,67762.0,0.8040545]
[1730050206639,0.00307955,67763.0,67762.0,0.9516295]
[1730050207703,0.00307955,67763.0,67762.0,0.8040545]
[1730050208120,0.00307955,67763.0,67762.0,0.9516295]
[1730050208322,0.00307955,67763.0,67762.0,0.8040545]
[1730050209219,0.00307955,67763.0,67762.0,0.9516295]
[1730050210614,0.00307955,67763.0,67762.0,0.8040545]
[1730050211060,0.00307955,67763.0,67762.0,0.9516295]
[1730050211500,0.00307955,67763.0,67762.0,0.8040545]
[1730050222045,0.00307955,67763.0,67762.0,0.9516295]
[1730050222250,0.00307955,67763.0,67762.0,0.8040545]
[1730050229316,0.00307955,67763.0,67762.0,0.87050192]
[1730050235145,0.00307955,67763.0,67762.0,0.87050208]
[1730050235578,0.00307955,67763.0,67762.0,1.29597049]
[1730050235811,0.00307955,67763.0,67762.0,1.51106888]
[1730050235812,0.001646,67763.0,67762.0,1.51106888]
[1730050235927,0.001646,67763.0,67762.0,1.60710639]
[1730050236123,0.001646,67763.0,67762.0,1.37817372]
[1730050236540,0.001646,67763.0,67762.0,1.49554326]
[1730050237213,0.001646,67763.0,67762.0,1.50410971]
[1730050237657,0.001646,67763.0,67762.0,1.48674017]
[1730050238297,0.001646,67763.0,67762.0,1.61932185]
[1730050238524,0.001646,67763.0,67762.0,1.52709563]
[1730050238741,0.001646,67763.0,67762.0,1.61932185]
[1730050239164,0.001646,67763.0,67762.0,1.48674017]
[1730050239811,0.001646,67763.0,67762.0,1.48633153]
[1730050243772,0.22159355,67769.0,67768.0,0.005]
[1730050243967,0.22159355,67769.0,67768.0,0.31567136]
[1730050244203,0.001646,67770.0,67769.0,0.005]
[1730050244438,0.001646,67770.0,67769.0,0.22972866]
[1730050244670,0.001646,67770.0,67769.0,0.22972858]
[1730050245425,0.001646,67770.0,67769.0,0.1664571]
[1730050245657,0.001646,67770.0,67769.0,0.3372571]
[1730050245901,0.001646,67770.0,67769.0,0.40052858]
[1730050246390,0.001646,67770.0,67769.0,0.56345381]
[1730050247322,0.001646,67770.0,67769.0,0.40052858]
[1730050248263,0.001646,67770.0,67769.0,0.33430638]
[1730050251623,0.001646,67770.0,67769.0,0.4004913]
[1730050251849,0.001646,67770.0,67769.0,0.33430638]
[1730050252069,0.001646,67770.0,67769.0,0.4004913]
[1730050252310,0.001646,67770.0,67769.0,0.33430638]
[1730050253862,0.001646,67770.0,67769.0,0.4004913]
[1730050254532,0.001646,67770.0,67769.0,0.40046972]
[1730050255425,0.001646,67770.0,67769.0,0.33430638]
[1730050261402,0.001646,67770.0,67769.0,0.24240638]
[1730050261623,0.001646,67770.0,67769.0,0.24535709]
[1730050264854,0.001646,67770.0,67769.0,0.31151954]
[1730050265032,0.001646,67770.0,67769.0,0.30856883]
[1730050265381,0.001646,67770.0,67769.0,0.24240638]
[1730050265587,0.001646,67770.0,67769.0,0.2453571]
[1730050266184,0.001646,67770.0,67769.0,0.31151955]
[1730050266387,0.001646,67770.0,67769.0,0.47140349]
[1730050267589,0.001646,67770.0,67769.0,0.30856883]
[1730050267756,0.001646,67770.0,67769.0,0.31151955]
[1730050267929,0.001646,67770.0,67769.0,0.30856883]
[1730050268340,0.001646,67770.0,67769.0,0.4714205]
[1730050270144,0.001646,67770.0,67769.0,0.40525805]
[1730050271692,0.08653703,67777.0,67776.0,0.152544]
[1730050271893,0.08653703,67777.0,67776.0,0.24477022]
[1730050272120,0.08653703,67777.0,67776.0,0.25568105]
[1730050275604,0.08653703,67777.0,67776.0,0.16345483]
[1730050279296,0.001644,67780.0,67779.0,0.152538]
[1730050279517,0.001644,67780.0,67779.0,0.49923586]
[1730050279765,0.001644,67780.0,67779.0,0.52909038]
[1730050279981,0.001644,67780.0,67779.0,0.41881962]
[1730050280191,0.001644,67780.0,67779.0,0.5292769]
[1730050280420,0.001644,67780.0,67779.0,0.41881962]
[1730050281732,0.001644,67780.0,67779.0,0.55114453]
[1730050282143,0.001644,67780.0,67779.0,0.5515023]
[1730050282374,0.001644,67780.0,67779.0,0.41887069]
[1730050283235,0.001644,67780.0,67779.0,0.55143602]
[1730050284290,0.001644,67780.0,67779.0,0.41887069]
[1730050284992,0.001644,67780.0,67779.0,0.55143602]
[1730050285406,0.001644,67780.0,67779.0,0.41887069]
[1730050286113,0.001644,67780.0,67779.0,0.84890072]
[1730050286402,0.001646,67782.0,67781.0,0.292103]
[1730050286651,0.001646,67782.0,67781.0,0.44555672]
[1730050286868,0.001646,67782.0,67781.0,0.66289464]
[1730050287087,0.001646,67782.0,67781.0,0.8584428]
[1730050287334,0.001646,67782.0,67781.0,0.83819464]
[1730050287572,0.001646,67784.0,67783.0,0.64185144]
[1730050287796,0.001646,67784.0,67783.0,0.9575543]
[1730050288016,0.001646,67784.0,67783.0,0.96666701]
[1730050288481,0.001646,67794.0,67792.0,0.41953622]
[1730050288706,0.001646,67794.0,67792.0,0.58273527]
[1730050288922,0.001646,67794.0,67792.0,0.59382082]
[1730050290233,0.001646,67794.0,67792.0,0.70398137]
[1730050291286,0.001646,67794.0,67792.0,0.59382082]
[1730050291495,0.001646,67794.0,67792.0,0.43062177]
[1730050291712,0.001646,67794.0,67792.0,0.59323368]
[1730050291921,0.001646,67794.0,67792.0,0.70336238]
[1730050292341,0.001646,67794.0,67792.0,0.59323368]
[1730050293430,0.001646,67794.0,67792.0,0.68129416]
[1730050294093,0.001646,67794.0,67792.0,0.68121434]
[1730050294220,0.001646,67794.0,67792.0,0.59315436]
[1730050294425,0.001646,67794.0,67792.0,0.94788439]
[1730050294666,0.001646,67794.0,67792.0,0.94588439]
[1730050294998,0.001646,67794.0,67792.0,0.94788439]
[1730050295198,0.001646,67794.0,67792.0,0.94588439]
[1730050296990,0.001646,67794.0,67793.0,0.162507]
[1730050297335,0.001646,67794.0,67793.0,0.60979009]
[1730050298194,0.001646,67794.0,67793.0,0.58679009]
[1730050298414,0.001646,67794.0,67793.0,0.67901631]
[1730050299268,0.001646,67794.0,67793.0,0.78892175]
[1730050300323,0.001646,67794.0,67793.0,0.67901631]
[1730050300525,0.001646,67794.0,67793.0,0.78892175]
[1730050300745,0.001646,67794.0,67793.0,0.67901631]
[1730050301213,0.1719,67802.0,67801.0,0.005]
[1730050301457,0.1719,67802.0,67801.0,0.34471622]
[1730050301665,0.1719,67802.0,67801.0,0.35595381]
[1730050305765,0.092,67802.0,67801.0,0.35595381]
[1730050307849,0.001646,67803.0,67802.0,0.252488]
[1730050308273,0.001646,67803.0,67802.0,0.26371396]
[1730050309830,0.001646,67803.0,67802.0,0.35594018]
[1730050313255,0.001646,67803.0,67802.0,0.26371396]
[1730050313719,0.001646,67803.0,67802.0,0.35594018]
[1730050313926,0.001646,67803.0,67802.0,0.26371396]
[1730050315603,0.001646,67803.0,67802.0,0.35594018]
[1730050315817,0.092846,67803.0,67802.0,0.26371396]
[1730050316249,0.30099355,67811.0,67810.0,0.15247]
[1730050316658,0.0794,67811.0,67810.0,0.16368686]
[1730050317517,0.2971252,67817.0,67811.0,0.005]
[1730050317518,0.0022122,67817.0,67811.0,0.005]
[1730050317734,0.0022122,67817.0,67815.0,0.147458]
[1730050318148,0.0022122,67817.0,67816.0,0.01121003]
[1730050318382,0.0022122,67817.0,67816.0,0.15866703]
[1730050318598,0.0022122,67817.0,67816.0,0.147457]
[1730050318831,0.0837122,67817.0,67816.0,0.15866445]
[1730050319038,0.0022122,67817.0,67816.0,0.25589067]
[1730050321048,0.0022122,67817.0,67816.0,0.44811689]
[1730050321261,0.0022122,67817.0,67816.0,0.35589067]
[1730050323218,0.0022122,67817.0,67816.0,0.44811689]
[1730050323423,0.0022122,67817.0,67816.0,0.39984008]
[1730050324269,0.0022122,67817.0,67816.0,0.45179067]
[1730050324477,0.0022122,67817.0,67816.0,0.7063714]
[1730050324732,0.0022122,67817.0,67816.0,0.61414518]
[1730050324951,0.0022122,67817.0,67816.0,0.70204401]
[1730050325410,0.0022122,67817.0,67816.0,0.79435036]
[1730050325634,0.0022122,67817.0,67816.0,0.60622414]
[1730050326270,0.0022122,67817.0,67816.0,0.51824518]
[1730050328333,0.0022122,67817.0,67816.0,0.51833398]
[1730050331203,0.0022122,67817.0,67816.0,0.6874602]
[1730050331452,0.0022122,67817.0,67816.0,0.6894602]
[1730050332014,0.0038562,67817.0,67816.0,0.6894602]
[1730050332199,0.0038562,67817.0,67816.0,0.6874602]
[1730050332442,0.0038562,67817.0,67816.0,0.6105602]
[1730050332653,0.001644,67817.0,67816.0,0.6125602]
[1730050333676,0.001644,67817.0,67816.0,0.6105602]
[1730050334410,0.001644,67817.0,67816.0,0.6205602]
[1730050334678,0.001644,67817.0,67816.0,0.77106401]
[1730050335311,0.001644,67817.0,67816.0,0.90554035]
[1730050335527,0.001644,67817.0,67816.0,1.03044509]
[1730050335727,0.001644,67817.0,67816.0,1.03244509]
[1730050336409,0.001644,67817.0,67816.0,0.98461413]
[1730050337056,0.001644,67817.0,67816.0,1.07684035]
[1730050337298,0.001644,67817.0,67816.0,1.12465704]
[1730050337514,0.001644,67817.0,67816.0,1.12265704]
[1730050338738,0.000823,67829.0,67825.0,0.017]
[1730050338940,0.00167,67838.0,67834.0,0.015]
[1730050338941,0.22159355,67835.0,67834.0,0.015]
[1730050339142,0.00167,67838.0,67837.0,0.262412]
[1730050339460,0.00167,67838.0,67837.0,0.35463822]
[1730050339677,0.00167,67838.0,67837.0,0.3657377]
[1730050340727,0.00167,67838.0,67837.0,0.3627377]
[1730050340954,0.22159355,67849.0,67844.0,0.252396]
[1730050341188,0.22159355,67849.0,67844.0,0.34462222]
[1730050341405,0.22159355,67849.0,67844.0,0.35571374]
[1730050341630,0.00171,67850.0,67844.0,0.44793996]
[1730050342072,0.00171,67850.0,67844.0,0.51381879]
[1730050342339,0.00171,67850.0,67844.0,0.44793996]
[1730050343413,0.00171,67850.0,67844.0,0.49181295]
[1730050343719,0.00171,67850.0,67844.0,0.6663226]
[1730050343929,0.00171,67850.0,67844.0,0.86784193]
[1730050344578,0.00171,67850.0,67849.0,0.34461222]
[1730050344799,0.00171,67850.0,67849.0,0.35461222]
[1730050345011,0.00171,67850.0,67849.0,0.36562695]
[1730050346617,0.00171,67850.0,67849.0,0.43137553]
[1730050346835,0.00171,67850.0,67849.0,0.59303475]
[1730050347038,0.00171,67850.0,67849.0,0.58303475]
[1730050347504,0.00171,67850.0,67849.0,0.43137553]
[1730050347734,0.00171,67850.0,67849.0,0.67410556]
[1730050347940,0.00171,67850.0,67849.0,0.84975927]
[1730050348144,0.00171,67850.0,67849.0,0.84974961]
[1730050348560,0.00171,67850.0,67849.0,0.94524961]
[1730050349002,0.00167,67861.0,67860.0,0.252362]
[1730050349221,0.00167,67861.0,67860.0,0.67003882]
[1730050349462,0.00167,67861.0,67860.0,0.84953495]
[1730050349684,0.00167,67861.0,67860.0,0.9390534]
[1730050349915,0.00167,67861.0,67860.0,1.0731285]
[1730050350249,0.22326355,67885.0,67881.0,0.015]
[1730050350472,0.00167,67885.0,67884.0,0.28731]
[1730050350684,0.0178301,67891.0,67890.0,0.316867]
[1730050350913,0.0178301,67891.0,67890.0,0.83223909]
[1730050351136,0.0178301,67891.0,67890.0,0.84754263]
[1730050351371,0.00017851,67899.0,67897.0,0.316851]
[1730050351638,0.00017851,67899.0,67897.0,0.89553983]
[1730050351843,0.00017851,67899.0,67897.0,1.06512919]
[1730050351844,1e-06,67898.0,67897.0,1.06512919]
[1730050352320,1e-06,67898.0,67897.0,0.73021936]
[1730050352525,1e-06,67898.0,67897.0,0.71554211]
[1730050352736,1e-06,67898.0,67897.0,0.91775861]
[1730050352954,1e-06,67898.0,67897.0,0.75714046]
[1730050353425,1e-06,67898.0,67897.0,0.6939448]
[1730050354094,1e-06,67898.0,67897.0,0.55858473]
[1730050354334,1e-06,67898.0,67897.0,0.59201021]
[1730050354537,0.000687,67906.0,67905.0,0.005]
[1730050354982,0.000687,67906.0,67905.0,0.01742536]
[1730050355227,0.000687,67906.0,67905.0,0.005]
[1730050355462,0.000687,67906.0,67905.0,0.01742536]
[1730050355697,0.000687,67906.0,67905.0,0.00794503]
[1730050355929,0.147231,67921.0,67908.0,0.005]
[1730050356162,0.29463745,67922.0,67908.0,0.005]
[1730050356404,0.294468,67919.0,67909.0,0.01242017]
[1730050356636,0.13336007,67919.0,67909.0,0.01242017]
[1730050356846,0.13336007,67919.0,67908.0,0.005]
[1730050357050,0.14724,67916.0,67910.0,0.01241887]
[1730050357262,0.29463745,67922.0,67908.0,0.005]
[1730050357263,0.13336007,67915.0,67909.0,0.01242017]
[1730050357483,0.13336007,67915.0,67908.0,0.005]
[1730050357776,0.13336007,67915.0,67910.0,0.01241887]
[1730050357998,0.13336007,67915.0,67909.0,0.01242017]
[1730050358231,0.13336007,67915.0,67911.0,0.01241758]
[1730050358441,0.13336007,67915.0,67910.0,0.01086651]
[1730050358650,0.147245,67914.0,67906.0,0.005]
[1730050358899,0.08,67913.0,67906.0,0.005]
[1730050359135,0.13336007,67910.0,67907.0,0.01086992]
[1730050359367,0.08,67913.0,67907.0,0.01086992]
[1730050359368,0.14725,67912.0,67907.0,0.01086992]
[1730050359610,0.13336007,67910.0,67907.0,0.01086992]
[1730050359847,0.147258,67908.0,67907.0,0.01086992]
[1730050360079,0.147262,67907.0,67899.0,0.005]
[1730050360323,0.13336007,67906.0,67903.0,0.22159355]
[1730050360549,0.13336007,67906.0,67896.0,0.1]
[1730050360550,0.13336007,67906.0,67900.0,0.01087786]